fUSD/lending_fUSD_20250622
["ID","MTS","AMOUNT","RATE_DAILY","PERIOD"]
[366918345,1750571452257,-2484.47,0.00019178,2]
[366918346,1750571452268,-1996.46,0.00019178,2]
[366918347,1750571452278,-490.0,0.00019178,2]
[366918348,1750571452289,-151.0,0.00019178,2]
[366918349,1750571452299,-3234.01,0.00019178,2]
[366918350,1750571452311,-490.0,0.00019178,2]
[366918351,1750571452321,-490.0,0.00019178,2]
[366918352,1750571452331,-1956.05,0.00019178,2]
[366918353,1750571452342,-490.0,0.00019178,2]
[366918354,1750571452353,-490.0,0.00019178,2]
[366918355,1750571452364,-1546.39,0.00019178,2]
[366918356,1750571452374,-490.0,0.00019178,2]
[366918357,1750571452384,-490.0,0.00019178,2]
[366918358,1750571452395,-490.0,0.00019178,2]
[366918359,1750571452406,-490.0,0.00019178,2]
[366918360,1750571452416,-552.43,0.00019178,2]
[366918361,1750571452426,-490.0,0.00019178,2]
[366918362,1750571452437,-2889.51,0.00019178,2]
[366918363,1750571452448,-490.0,0.00019178,2]
[366918364,1750571452458,-490.0,0.00019178,2]
[366918365,1750571452468,-490.0,0.00019178,2]
[366918366,1750571452479,-490.0,0.00019178,2]
[366918367,1750571452490,-490.0,0.00019178,2]
[366918368,1750571452500,-490.0,0.00019178,2]
[366918369,1750571452511,-2048.83,0.00019178,2]
[366918370,1750571452521,-151.0,0.00019178,2]
[366918371,1750571452532,-2071.6,0.00019178,2]
[366918372,1750571452542,-490.0,0.00019178,2]
[366918373,1750571452553,-151.0,0.00019178,2]
[366918374,1750571452565,-703.52,0.00019178,2]
[366918375,1750571452576,-2891.43,0.00019178,2]
[366918376,1750571452586,-491.17016617,0.00019178,2]
[366918377,1750571452596,-490.0,0.00019178,2]
[366918378,1750571452609,-490.0,0.00019178,2]
[366918379,1750571452619,-931.94,0.00019178,2]
[366918380,1750571452629,-490.0,0.00019178,2]
[366918381,1750571452640,-490.0,0.00019178,2]
[366918382,1750571452650,-490.0,0.00019178,2]
[366918383,1750571452661,-151.0,0.00019178,2]
[366918384,1750571452672,-158.153801,0.00019178,2]
[366918385,1750571452684,-694.6,0.00019178,2]
[366918386,1750571452694,-2200.16,0.00019178,2]
[366918387,1750571452705,-490.0,0.00019178,2]
[366918388,1750571452715,-151.0,0.00019178,2]
[366918389,1750571452726,-490.0,0.00019178,2]
[366918390,1750571452738,-570.17,0.00019178,2]
[366918391,1750571452753,-151.0,0.00019178,2]
[366918392,1750571452763,-490.0,0.00019178,2]
[366918393,1750571452774,-490.0,0.00019178,2]
[366918394,1750571452784,-2222.16,0.00019178,2]
[366918395,1750571452795,-490.0,0.00019178,2]
[366918396,1750571452805,-490.0,0.00019178,2]
[366918397,1750571452815,-490.0,0.00019178,2]
[366918398,1750571452826,-490.0,0.00019178,2]
[366918399,1750571452836,-1928.66,0.00019178,2]
[366918400,1750571452846,-1026.36,0.00019178,2]
[366918401,1750571452857,-1082.82,0.00019178,2]
[366918402,1750571452867,-151.0,0.00019178,2]
[366918403,1750571452881,-490.0,0.00019178,2]
[366918404,1750571452891,-916.52,0.00019178,2]
[366918405,1750571452902,-528.85,0.00019178,2]
[366918406,1750571452912,-151.0,0.00019178,2]
[366918407,1750571452922,-490.0,0.00019178,2]
[366918408,1750571452932,-6430.01,0.00019178,2]
[366918409,1750571452942,-1155.1,0.00019178,2]
[366918410,1750571452952,-1596.66,0.00019178,2]
[366918411,1750571452963,-8393.25,0.00019178,2]
[366918412,1750571452973,-490.0,0.00019178,2]
[366918413,1750571452984,-490.0,0.00019178,2]
[366918414,1750571452994,-4190.23,0.00019178,2]
[366918415,1750571453004,-490.0,0.00019178,2]
[366918416,1750571453015,-490.0,0.00019178,2]
[366918417,1750571453026,-490.0,0.00019178,2]
[366918418,1750571453038,-3086.91,0.00019178,2]
[366918419,1750571453049,-2120.91,0.00019178,2]
[366918420,1750571453059,-490.0,0.00019178,2]
[366918421,1750571453070,-490.0,0.00019178,2]
[366918422,1750571453080,-490.0,0.00019178,2]
[366918423,1750571453090,-490.0,0.00019178,2]
[366918424,1750571453100,-490.0,0.00019178,2]
[366918425,1750571453110,-757.07,0.00019178,2]
[366918426,1750571453120,-3071.15,0.00019178,2]
[366918427,1750571453131,-1785.44,0.00019178,2]
[366918428,1750571453141,-490.0,0.00019178,2]
[366918429,1750571453155,-490.0,0.00019178,2]
[366918430,1750571453164,-804.03,0.00019178,2]
[366918431,1750571453176,-1143.38,0.00019178,2]
[366918432,1750571453186,-706.78,0.00019178,2]
[366918433,1750571453198,-1334.77,0.00019178,2]
[366918434,1750571453209,-490.0,0.00019178,2]
[366918435,1750571453221,-2608.86,0.00019178,2]
[366918436,1750571453231,-490.0,0.00019178,2]
[366918437,1750571453243,-490.0,0.00019178,2]
[366918438,1750571453254,-1102.82,0.00019178,2]
[366918439,1750571453264,-490.0,0.00019178,2]
[366918440,1750571453275,-1457.77,0.00019178,2]
[366918441,1750571453286,-703.53,0.00019178,2]
[366918442,1750571453296,-490.0,0.00019178,2]
[366918443,1750571453306,-490.0,0.00019178,2]
[366918444,1750571453317,-602.27,0.00019178,2]
[366918445,1750571453327,-490.0,0.00019178,2]
[366918446,1750571453339,-490.0,0.00019178,2]
[366918447,1750571453351,-626.98,0.00019178,2]
[366918448,1750571453361,-490.0,0.00019178,2]
[366918449,1750571453372,-2585.37,0.00019178,2]
[366918450,1750571453382,-490.0,0.00019178,2]
[366918451,1750571453393,-490.0,0.00019178,2]
[366918452,1750571453404,-4999.02,0.00019178,2]
[366918453,1750571453416,-3602.7,0.00019178,2]
[366918454,1750571453426,-3173.95,0.00019178,2]
[366918455,1750571453437,-9233.31,0.00019178,2]
[366918456,1750571453447,-490.0,0.00019178,2]
[366918457,1750571453457,-490.0,0.00019178,2]
[366918458,1750571453468,-13717.59,0.00019178,2]
[366918459,1750571453478,-3173.95,0.00019178,2]
[366918460,1750571453488,-24471.3,0.00019178,2]
[366918461,1750571453498,-3173.95,0.00019178,2]
[366918462,1750571453509,-3173.95,0.00019178,2]
[366918463,1750571453519,-490.0,0.00019178,2]
[366918464,1750571453530,-906.73,0.00019178,2]
[366918465,1750571453540,-3173.95,0.00019178,2]
[366918466,1750571453551,-1648.41,0.00019178,2]
[366918467,1750571453562,-3173.95,0.00019178,2]
[366918468,1750571453572,-3173.95,0.00019178,2]
[366918469,1750571453582,-522.81,0.00019178,2]
[366918470,1750571453592,-490.0,0.00019178,2]
[366918471,1750571453603,-490.0,0.00019178,2]
[366918472,1750571453614,-490.0,0.00019178,2]
[366918473,1750571453624,-490.0,0.00019178,2]
[366918474,1750571453635,-490.0,0.00019178,2]
[366918475,1750571453645,-490.0,0.00019178,2]
[366918476,1750571453655,-528.68,0.00019178,2]
[366918477,1750571453665,-1455.16,0.00019178,2]
[366918478,1750571453676,-490.0,0.00019178,2]
[366918479,1750571453686,-329.53026136,0.00019178,2]
[366918480,1750571453697,-1907.75,0.00019178,2]
[366918481,1750571453707,-590.94,0.00019178,2]
[366918482,1750571453717,-537.62,0.00019178,2]
[366918483,1750571454035,-2398.45,0.00019178,2]
[366918484,1750571454046,-2343.27,0.00019178,2]
[366918485,1750571454056,-537.62,0.00019178,2]
[366918486,1750571454066,-1535.8,0.00019178,2]
[366918487,1750571454075,-537.62,0.00019178,2]
[366918488,1750571454085,-537.62,0.00019178,2]
[366918489,1750571454095,-1968.36,0.00019178,2]
[366918490,1750571454104,-537.62,0.00019178,2]
[366918491,1750571454114,-537.62,0.00019178,2]
[366918492,1750571454123,-8897.21,0.00019178,2]
[366918493,1750571454134,-537.62,0.00019178,2]
[366918494,1750571454143,-490.0,0.00019178,2]
[366918495,1750571454157,-1147.05,0.00019178,2]
[366918496,1750571454167,-1007.52,0.00019178,2]
[366918497,1750571454177,-8925.65,0.00019178,2]
[366918498,1750571454187,-338.35374739,0.00019178,2]
[366918499,1750571454197,-1463.56,0.00019178,2]
[366918500,1750571454207,-397.70500889,0.00019178,2]
[366918501,1750571454216,-2298.67,0.00019178,2]
[366918502,1750571454228,-496.98,0.00019178,2]
[366918503,1750571454237,-688.07,0.00019178,2]
[366918504,1750571454248,-4907.92,0.00019178,2]
[366918505,1750571454258,-1142.73,0.00019178,2]
[366918506,1750571454267,-3582.13,0.00019178,2]
[366918507,1750571454277,-1297.88,0.00019178,2]
[366918508,1750571454286,-490.0,0.00019178,2]
[366918509,1750571454296,-4132.56,0.00019178,2]
[366918510,1750571454307,-11481.76,0.00019178,2]
[366918511,1750571454317,-2953.9,0.00019178,2]
[366918512,1750571454327,-2037.86,0.00019178,2]
[366918513,1750571454337,-490.0,0.00019178,2]
[366918514,1750571454346,-665.13,0.00019178,2]
[366918515,1750571454356,-490.0,0.00019178,2]
[366918516,1750571454366,-151.0,0.00019178,2]
[366918517,1750571454376,-151.0,0.00019178,2]
[366918518,1750571454386,-1571.85,0.00019178,2]
[366918519,1750571454396,-490.0,0.00019178,2]
[366918520,1750571454407,-455.64032913,0.00019178,2]
[366918521,1750571454417,-5543.5,0.00019178,2]
[366918522,1750571454427,-490.0,0.00019178,2]
[366918523,1750571454436,-490.0,0.00019178,2]
[366918524,1750571454446,-1532.59,0.00019178,2]
[366918525,1750571454455,-490.0,0.00019178,2]
[366918526,1750571454465,-3059.98,0.00019178,2]
[366918527,1750571454474,-490.0,0.00019178,2]
[366918528,1750571454485,-490.0,0.00019178,2]
[366918529,1750571454494,-2203.87,0.00019178,2]
[366918530,1750571454504,-490.0,0.00019178,2]
[366918531,1750571454514,-490.0,0.00019178,2]
[366918532,1750571454525,-507.44166832,0.00019178,2]
[366918533,1750571454534,-2862.25,0.00019178,2]
[366918534,1750571454545,-1355.12,0.00019178,2]
[366918535,1750571454555,-2738.85,0.00019178,2]
[366918536,1750571454564,-2361.78,0.00019178,2]
[366918537,1750571454574,-444.60271817,0.00019178,2]
[366918538,1750571454584,-490.0,0.00019178,2]
[366918539,1750571454593,-490.0,0.00019178,2]
[366918540,1750571454603,-490.0,0.00019178,2]
[366918541,1750571454613,-572.02224637,0.00019178,2]
[366918542,1750571454623,-994.13,0.00019178,2]
[366918543,1750571454632,-3931.61,0.00019178,2]
[366918544,1750571454642,-754.91,0.00019178,2]
[366918545,1750571454652,-1190.99,0.00019178,2]
[366918546,1750571454662,-1050.628746,0.00019178,2]
[366918547,1750571454672,-490.0,0.00019178,2]
[366918548,1750571454682,-2428.44,0.00019178,2]
[366918549,1750571454692,-490.0,0.00019178,2]
[366918550,1750571454702,-490.0,0.00019178,2]
[366918551,1750571454712,-1050.628746,0.00019178,2]
[366918552,1750571454722,-490.0,0.00019178,2]
[366918553,1750571454732,-912.2,0.00019178,2]
[366918554,1750571454742,-490.0,0.00019178,2]
[366918555,1750571454752,-2603.12,0.00019178,2]
[366918556,1750571454761,-3168.41,0.00019178,2]
[366918557,1750571454772,-2427.58,0.00019178,2]
[366918558,1750571454781,-1050.628746,0.00019178,2]
[366918559,1750571454791,-490.0,0.00019178,2]
[366918560,1750571454800,-1050.628746,0.00019178,2]
[366918561,1750571454812,-490.0,0.00019178,2]
[366918562,1750571454822,-490.0,0.00019178,2]
[366918563,1750571454832,-490.0,0.00019178,2]
[366918564,1750571454842,-490.0,0.00019178,2]
[366918565,1750571454852,-490.0,0.00019178,2]
[366918566,1750571454862,-5194.46,0.00019178,2]
[366918567,1750571454872,-532.46229094,0.00019178,2]
[366918568,1750571454882,-490.0,0.00019178,2]
[366918569,1750571454892,-490.0,0.00019178,2]
[366918570,1750571454902,-490.0,0.00019178,2]
[366918571,1750571454912,-490.0,0.00019178,2]
[366918572,1750571454922,-490.0,0.00019178,2]
[366918573,1750571454933,-279.398262,0.00019178,2]
[366918574,1750571454942,-2855.8,0.00019178,2]
[366918575,1750571454953,-490.0,0.00019178,2]
[366918576,1750571454963,-279.398262,0.00019178,2]
[366918577,1750571454973,-8328.78,0.00019178,2]
[366918578,1750571454983,-490.0,0.00019178,2]
[366918579,1750571454993,-750.96,0.00019178,2]
[366918580,1750571455003,-490.0,0.00019178,2]
[366918581,1750571455013,-490.0,0.00019178,2]
[366918582,1750571455023,-977.57,0.00019178,2]
[366918583,1750571455034,-606.9,0.00019178,2]
[366918584,1750571455044,-490.0,0.00019178,2]
[366918585,1750571455053,-490.0,0.00019178,2]
[366918586,1750571455064,-526.74855793,0.00019178,2]
[366918587,1750571455074,-279.398262,0.00019178,2]
[366918588,1750571455084,-490.0,0.00019178,2]
[366918589,1750571455093,-279.398262,0.00019178,2]
[366918590,1750571455103,-505.07806336,0.00019178,2]
[366918591,1750571455113,-490.0,0.00019178,2]
[366918592,1750571455122,-490.0,0.00019178,2]
[366918593,1750571455132,-4140.7,0.00019178,2]
[366918594,1750571455142,-490.0,0.00019178,2]
[366918595,1750571455154,-490.0,0.00019178,2]
[366918596,1750571455165,-490.0,0.00019178,2]
[366918597,1750571455175,-490.0,0.00019178,2]
[366918598,1750571455185,-1563.51,0.00019178,2]
[366918599,1750571455198,-670.95,0.00019178,2]
[366918600,1750571455208,-588.41,0.00019178,2]
[366918601,1750571455220,-2464.67,0.00019178,2]
[366918602,1750571455232,-1488.66,0.00019178,2]
[366918603,1750571455242,-490.0,0.00019178,2]
[366918604,1750571455252,-638.54,0.00019178,2]
[366918605,1750571455262,-490.0,0.00019178,2]
[366918606,1750571455272,-460.200579,0.00019178,2]
[366918607,1750571455282,-3291.09,0.00019178,2]
[366918608,1750571455292,-490.0,0.00019178,2]
[366918609,1750571455302,-19021.19,0.00019178,2]
[366918610,1750571455313,-17819.97,0.00019178,2]
[366918611,1750571455323,-490.0,0.00019178,2]
[366918612,1750571455333,-490.0,0.00019178,2]
[366918613,1750571455343,-12439.01,0.00019178,2]
[366918614,1750571455355,-490.0,0.00019178,2]
[366918615,1750571455366,-754.57,0.00019178,2]
[366918616,1750571455376,-1433.53,0.00019178,2]
[366918617,1750571455386,-490.0,0.00019178,2]
[366918618,1750571455396,-490.0,0.00019178,2]
[366918619,1750571455406,-1069.15,0.00019178,2]
[366918620,1750571455416,-1613.75,0.00019178,2]
[366918621,1750571455426,-490.0,0.00019178,2]
[366918622,1750571455438,-500.0,0.00019178,2]
[366918623,1750571455448,-150.0,0.00019178,2]
[366918624,1750571455458,-315.65450104,0.00019178,2]
[366918625,1750571455467,-490.0,0.00019178,2]
[366918626,1750571455477,-490.0,0.00019178,2]
[366918627,1750571455486,-490.0,0.00019178,2]
[366918628,1750571455496,-490.0,0.00019178,2]
[366918629,1750571455506,-4428.4,0.00019178,2]
[366918630,1750571455516,-500.0,0.00019178,2]
[366918631,1750571455526,-2231.11,0.00019178,2]
[366918632,1750571455535,-500.0,0.00019178,2]
[366918633,1750571455545,-490.0,0.00019178,2]
[366918634,1750571455555,-150.0,0.00019178,2]
[366918635,1750571455565,-12540.21,0.00019178,2]
[366918636,1750571455574,-795.21,0.00019178,2]
[366918637,1750571455585,-490.0,0.00019178,2]
[366918638,1750571455594,-490.0,0.00019178,2]
[366918639,1750571455604,-490.0,0.00019178,2]
[366918640,1750571455614,-1190.71,0.00019178,2]
[366918641,1750571455623,-1016.67,0.00019178,2]
[366918642,1750571455633,-529.24138181,0.00019178,2]
[366918643,1750571455642,-1673.02,0.00019178,2]
[366918644,1750571455652,-879.11,0.00019178,2]
[366918645,1750571455662,-500.0,0.00019178,2]
[366918646,1750571455672,-490.0,0.00019178,2]
[366918647,1750571455682,-500.0,0.00019178,2]
[366918648,1750571455691,-4812.2,0.00019178,2]
[366918649,1750571455702,-500.0,0.00019178,2]
[366918650,1750571455711,-490.0,0.00019178,2]
[366918651,1750571455721,-4812.2,0.00019178,2]
[366918652,1750571455731,-4812.2,0.00019178,2]
[366918653,1750571455741,-500.0,0.00019178,2]
[366918654,1750571455751,-4286.41,0.00019178,2]
[366918655,1750571455761,-4812.2,0.00019178,2]
[366918656,1750571455771,-503.07203056,0.00019178,2]
[366918657,1750571455780,-1707.02,0.00019178,2]
[366918658,1750571455790,-4812.2,0.00019178,2]
[366918659,1750571455800,-4812.2,0.00019178,2]
[366918660,1750571455810,-490.0,0.00019178,2]
[366918661,1750571455820,-4812.2,0.00019178,2]
[366918662,1750571455830,-4812.2,0.00019178,2]
[366918663,1750571455839,-500.0,0.00019178,2]
[366918664,1750571455850,-150.0,0.00019178,2]
[366918665,1750571455860,-1353.66,0.00019178,2]
[366918666,1750571455869,-1414.88,0.00019178,2]
[366918667,1750571455879,-150.0,0.00019178,2]
[366918668,1750571455888,-2247.58,0.00019178,2]
[366918669,1750571455898,-832.78,0.00019178,2]
[366918670,1750571455907,-2410.2,0.00019178,2]
[366918671,1750571455917,-490.0,0.00019178,2]
[366918672,1750571455927,-490.0,0.00019178,2]
[366918673,1750571455938,-9606.61,0.00019178,2]
[366918674,1750571455948,-549.12,0.00019178,2]
[366918675,1750571455958,-4816.38,0.00019178,2]
[366918676,1750571455968,-5987.36,0.00019178,2]
[366918677,1750571455981,-490.0,0.00019178,2]
[366918678,1750571455991,-151.917178,0.00019178,2]
[366918679,1750571456001,-2724.78,0.00019178,2]
[366918680,1750571456012,-490.0,0.00019178,2]
[366918681,1750571456021,-3524.76,0.00019178,2]
[366918682,1750571456031,-4103.56,0.00019178,2]
[366918683,1750571456041,-2099.09,0.00019178,2]
[366918684,1750571456051,-2935.75,0.00019178,2]
[366918685,1750571456061,-490.0,0.00019178,2]
[366918686,1750571456070,-490.0,0.00019178,2]
[366918687,1750571456079,-490.0,0.00019178,2]
[366918688,1750571456089,-4039.42,0.00019178,2]
[366918689,1750571456099,-2084.72,0.00019178,2]
[366918690,1750571456109,-926.84,0.00019178,2]
[366918691,1750571456117,-490.0,0.00019178,2]
[366918692,1750571456126,-3281.73,0.00019178,2]
[366918693,1750571456136,-3691.1,0.00019178,2]
[366918694,1750571456147,-1118.79,0.00019178,2]
[366918695,1750571456163,-567.77861507,0.00019178,2]
[366918696,1750571456174,-1375.16,0.00019178,2]
[366918697,1750571456183,-834.82,0.00019178,2]
[366918698,1750571456194,-490.0,0.00019178,2]
[366918699,1750571456204,-490.0,0.00019178,2]
[366918700,1750571456213,-490.0,0.00019178,2]
[366918701,1750571456224,-1766.07,0.00019178,2]
[366918702,1750571456235,-151.0,0.00019178,2]
[366918703,1750571456247,-151.0,0.00019178,2]
[366918704,1750571456256,-490.0,0.00019178,2]
[366918705,1750571456266,-490.0,0.00019178,2]
[366918706,1750571456276,-617.97,0.00019178,2]
[366918707,1750571456286,-2768.3,0.00019178,2]
[366918708,1750571456296,-490.0,0.00019178,2]
[366918709,1750571456306,-3213.2,0.00019178,2]
[366918710,1750571456316,-2090.84,0.00019178,2]
[366918711,1750571456326,-490.0,0.00019178,2]
[366918712,1750571456336,-490.0,0.00019178,2]
[366918713,1750571456346,-490.0,0.00019178,2]
[366918714,1750571456355,-14088.67,0.00019178,2]
[366918715,1750571456365,-490.0,0.00019178,2]
[366918716,1750571456375,-758.39,0.00019178,2]
[366918717,1750571456386,-490.0,0.00019178,2]
[366918718,1750571456397,-490.0,0.00019178,2]
[366918719,1750571456493,-7872.95,0.00019178,2]
[366918720,1750571456503,-864.59,0.00019178,2]
[366918721,1750571456513,-490.0,0.00019178,2]
[366918722,1750571456523,-440.40698836,0.00019178,2]
[366918723,1750571456533,-152.714944,0.00019178,2]
[366918724,1750571456543,-490.0,0.00019178,2]
[366918725,1750571456552,-2261.42,0.00019178,2]
[366918726,1750571456562,-490.0,0.00019178,2]
[366918727,1750571456572,-1526.77,0.00019178,2]
[366918728,1750571456581,-2833.3,0.00019178,2]
[366918729,1750571456591,-151.0,0.00019178,2]
[366918730,1750571456600,-490.0,0.00019178,2]
[366918731,1750571456610,-490.0,0.00019178,2]
[366918732,1750571456619,-151.0,0.00019178,2]
[366918733,1750571456628,-490.0,0.00019178,2]
[366918734,1750571456638,-490.0,0.00019178,2]
[366918735,1750571456648,-739.72,0.00019178,2]
[366918736,1750571456659,-4901.1,0.00019178,2]
[366918737,1750571456670,-1135.92,0.00019178,2]
[366918738,1750571456680,-490.0,0.00019178,2]
[366918739,1750571456690,-499.08138629,0.00019178,2]
[366918740,1750571456699,-490.0,0.00019178,2]
[366918741,1750571456709,-1523.83,0.00019178,2]
[366918742,1750571456719,-494.6993341,0.00019178,2]
[366918743,1750571456728,-490.0,0.00019178,2]
[366918744,1750571456738,-490.0,0.00019178,2]
[366918745,1750571456747,-970.94,0.00019178,2]
[366918746,1750571456757,-490.0,0.00019178,2]
[366918747,1750571456766,-2859.73,0.00019178,2]
[366918748,1750571456776,-5596.17,0.00019178,2]
[366918749,1750571456786,-490.0,0.00019178,2]
[366918750,1750571456795,-491.40251416,0.00019178,2]
[366918751,1750571456804,-16972.73,0.00019178,2]
[366918752,1750571456814,-490.0,0.00019178,2]
[366918753,1750571456824,-490.0,0.00019178,2]
[366918754,1750571456834,-1214.59,0.00019178,2]
[366918755,1750571456845,-490.0,0.00019178,2]
[366918756,1750571456855,-1950.2,0.00019178,2]
[366918757,1750571456864,-803.9,0.00019178,2]
[366918758,1750571456874,-490.0,0.00019178,2]
[366918759,1750571456883,-1159.83,0.00019178,2]
[366918760,1750571456893,-490.0,0.00019178,2]
[366918761,1750571456903,-490.0,0.00019178,2]
[366918762,1750571456913,-490.0,0.00019178,2]
[366918763,1750571456923,-644.53,0.00019178,2]
[366918764,1750571456932,-151.0,0.00019178,2]
[366918765,1750571456943,-621.94640211,0.00019178,2]
[366918766,1750571456953,-151.0,0.00019178,2]
[366918767,1750571456962,-2431.39,0.00019178,2]
[366918768,1750571456972,-490.0,0.00019178,2]
[366918769,1750571456981,-490.0,0.00019178,2]
[366918770,1750571456991,-151.0,0.00019178,2]
[366918771,1750571457000,-490.0,0.00019178,2]
[366918772,1750571457011,-151.0,0.00019178,2]
[366918773,1750571457020,-490.0,0.00019178,2]
[366918774,1750571457030,-490.0,0.00019178,2]
[366918775,1750571457040,-6460.81,0.00019178,2]
[366918776,1750571457052,-492.59539473,0.00019178,2]
[366918777,1750571457062,-494.9181674,0.00019178,2]
[366918778,1750571457071,-3557.04,0.00019178,2]
[366918779,1750571457081,-1810.07,0.00019178,2]
[366918780,1750571457091,-2907.39,0.00019178,2]
[366918781,1750571457100,-3216.35,0.00019178,2]
[366918782,1750571457110,-490.0,0.00019178,2]
[366918783,1750571457120,-4799.23,0.00019178,2]
[366918784,1750571457129,-490.0,0.00019178,2]
[366918785,1750571457139,-490.0,0.00019178,2]
[366918786,1750571457150,-490.0,0.00019178,2]
[366918787,1750571457162,-490.0,0.00019178,2]
[366918788,1750571457172,-490.0,0.00019178,2]
[366918789,1750571457182,-490.0,0.00019178,2]
[366918790,1750571457192,-888.14,0.00019178,2]
[366918791,1750571457202,-436.94392,0.00019178,2]
[366918792,1750571457212,-5118.76,0.00019178,2]
[366918793,1750571457222,-436.94392,0.00019178,2]
[366918794,1750571457233,-1537.62,0.00019178,2]
[366918795,1750571457243,-490.0,0.00019178,2]
[366918796,1750571457252,-490.0,0.00019178,2]
[366918797,1750571457262,-490.0,0.00019178,2]
[366918798,1750571457272,-596.88,0.00019178,2]
[366918799,1750571457281,-151.0,0.00019178,2]
[366918800,1750571457291,-1137.69,0.00019178,2]
[366918801,1750571457300,-490.0,0.00019178,2]
[366918802,1750571457310,-436.94392,0.00019178,2]
[366918803,1750571457320,-151.0,0.00019178,2]
[366918804,1750571457329,-2511.18,0.00019178,2]
[366918805,1750571457339,-436.94392,0.00019178,2]
[366918806,1750571457348,-478.41587293,0.00019178,2]
[366918807,1750571457359,-9861.66,0.00019178,2]
[366918808,1750571457368,-2041.1,0.00019178,2]
[366918809,1750571457378,-490.0,0.00019178,2]
[366918810,1750571457387,-490.0,0.00019178,2]
[366918811,1750571457396,-1410.74,0.00019178,2]
[366918812,1750571457406,-26376.74,0.00019178,2]
[366918813,1750571457416,-490.0,0.00019178,2]
[366918814,1750571457426,-490.0,0.00019178,2]
[366918815,1750571457436,-602.72897449,0.00019178,2]
[366918816,1750571457446,-870.2,0.00019178,2]
[366918817,1750571457456,-275.433523,0.00019178,2]
[366918818,1750571457466,-490.0,0.00019178,2]
[366918819,1750571457475,-597.03,0.00019178,2]
[366918820,1750571457485,-275.433523,0.00019178,2]
[366918821,1750571457495,-597.03,0.00019178,2]
[366918822,1750571457505,-1124.46,0.00019178,2]
[366918823,1750571457515,-597.03,0.00019178,2]
[366918824,1750571457525,-490.0,0.00019178,2]
[366918825,1750571457534,-597.03,0.00019178,2]
[366918826,1750571457544,-597.03,0.00019178,2]
[366918827,1750571457553,-698.13,0.00019178,2]
[366918828,1750571457565,-597.03,0.00019178,2]
[366918829,1750571457575,-597.03,0.00019178,2]
[366918830,1750571457584,-490.0,0.00019178,2]
[366918831,1750571457594,-979.44,0.00019178,2]
[366918832,1750571457604,-722.2,0.00019178,2]
[366918833,1750571457613,-275.433523,0.00019178,2]
[366918834,1750571457623,-275.433523,0.00019178,2]
[366918835,1750571457632,-1431.98,0.00019178,2]
[366918836,1750571457642,-708.39,0.00019178,2]
[366918837,1750571457651,-528.12,0.00019178,2]
[366918838,1750571457662,-490.0,0.00019178,2]
[366918839,1750571457672,-490.0,0.00019178,2]
[366918840,1750571457681,-490.0,0.00019178,2]
[366918841,1750571457690,-1664.04,0.00019178,2]
[366918842,1750571457702,-201.216175,0.00019178,2]
[366918843,1750571457712,-1110.04,0.00019178,2]
[366918844,1750571457722,-5266.42,0.00019178,2]